bitfinex-derivatives/quotes_ETHF0:USTF0_20250919
["timestamp","ask_amount","ask_price","bid_price","bid_amount"]
[1758312396635,1.16566818,4450.5,4450.4,0.6937]
[1758312398328,1.16566818,4450.5,4450.4,0.229]
[1758312400134,1.16566818,4450.5,4450.4,0.63323]
[1758312400434,1.16566818,4450.5,4450.4,0.229]
[1758312400930,1.16566818,4450.5,4450.4,0.63323]
[1758312401330,1.16566818,4450.5,4450.1,3.61205]
[1758312401331,0.4554,4450.2,4450.1,3.61205]
[1758312401632,1.02386818,4450.2,4450.1,3.61205]
[1758312403032,1.02386818,4450.2,4450.0,17.61363636]
[1758312403033,0.3419,4450.1,4450.0,17.61363636]
[1758312403233,1.02386818,4450.1,4450.0,17.61363636]
[1758312403630,1.02386818,4450.1,4450.0,17.84263636]
[1758312405346,1.02392176,4450.1,4450.0,17.84263636]
[1758312406032,1.02392176,4450.1,4450.0,18.71159636]
[1758312406238,0.56852176,4450.1,4450.0,18.90509636]
[1758312406432,0.22662176,4450.1,4450.0,18.90509636]
[1758312407040,0.22662176,4450.1,4450.0,18.67609636]
[1758312407238,0.22662176,4450.1,4450.0,18.90509636]
[1758312408038,0.20422176,4450.1,4450.0,23.12981635]
[1758312408736,0.20422176,4450.1,4450.0,22.90509636]
[1758312413239,0.3419,4450.6,4450.5,0.86892]
[1758312413440,0.82900346,4450.6,4450.5,4.49922]
[1758312415937,0.48710346,4450.6,4450.5,4.49922]
[1758312416246,0.48710346,4450.6,4450.5,4.57742]
[1758312418144,0.4837,4451.0,4450.9,0.86888]
[1758312418347,0.72,4451.0,4450.9,1.29138]
[1758312418649,1.20782959,4451.0,4450.9,1.29138]
[1758312419446,1.42542959,4451.0,4450.9,0.63318]
[1758312419646,0.7692,4450.6,4450.5,3.61202]
[1758312419948,1.48473483,4450.6,4450.5,3.84102]
[1758312420455,1.48473483,4450.6,4450.5,3.4368]
[1758312420941,1.48473483,4450.6,4450.5,3.84102]
[1758312422450,1.48473483,4450.6,4450.5,3.4368]
[1758312422947,1.48473483,4450.6,4450.5,4.05612]
[1758312423351,0.71553483,4450.6,4450.5,4.45792]
[1758312423743,1.04653483,4450.6,4450.5,4.45792]
[1758312424249,1.04670034,4450.6,4450.5,4.45792]
[1758312424452,1.48490034,4450.6,4450.5,4.27662]
[1758312424651,1.48490034,4450.6,4450.5,3.84102]
[1758312425350,1.48490034,4450.6,4450.5,4.05612]
[1758312425548,1.48490034,4450.6,4450.5,3.84102]
[1758312426151,1.48490034,4450.6,4450.5,4.05612]
[1758312426547,1.48490034,4450.6,4450.5,0.84832]
[1758312426851,0.4382,4450.4,4450.3,0.40423]
[1758312427049,1.48490034,4450.4,4450.3,0.63323]
[1758312427246,1.48490034,4450.4,4450.3,0.84833]
[1758312428945,1.48490034,4450.4,4450.3,0.61933]
[1758312429146,1.48490034,4450.4,4450.3,0.84833]
[1758312429353,1.48490034,4450.4,4450.3,1.06883]
[1758312430250,1.48490034,4450.4,4450.3,1.25013]
[1758312430646,1.48490034,4450.4,4450.3,1.02113]
[1758312430953,1.48490034,4450.4,4450.3,1.25013]
[1758312432053,1.48490034,4450.4,4450.3,1.02113]
[1758312432253,1.48490034,4450.4,4450.3,1.06883]
[1758312434550,1.26730034,4450.4,4450.3,1.25013]
[1758312434750,1.48490034,4450.4,4450.3,1.06883]
[1758312435854,1.48490034,4450.4,4450.3,0.84833]
[1758312436060,1.48490034,4450.4,4450.3,1.06883]
[1758312436453,1.48490034,4450.4,4450.3,0.83983]
[1758312436651,1.48490034,4450.4,4450.3,1.06883]
[1758312440658,1.48490034,4450.4,4450.3,1.06783]
[1758312441054,1.48490034,4450.4,4450.3,0.63223]
[1758312442550,1.48490034,4450.4,4450.3,0.84733]
[1758312447666,1.48490034,4450.4,4450.3,0.63223]
[1758312449563,1.48490034,4450.4,4450.3,0.84733]
[1758312450060,1.48490034,4450.4,4450.3,1.07933]
[1758312450371,0.71570034,4450.4,4450.3,1.24923]
[1758312450866,1.06780034,4450.4,4450.3,1.24923]
[1758312451068,0.56364193,4450.4,4450.3,1.24923]
[1758312451666,0.4371,4450.2,4450.1,0.40423]
[1758312451863,1.48970478,4450.2,4450.1,0.63223]
[1758312452966,1.48970478,4450.2,4450.1,0.86383]
[1758312453468,1.48970478,4450.2,4450.1,0.63223]
[1758312453864,1.48970478,4450.2,4450.1,1.09583]
[1758312453865,0.70050478,4450.2,4450.1,1.09583]
[1758312454068,1.05260478,4450.2,4450.1,1.26573]
[1758312454368,1.26850478,4450.2,4450.1,1.09583]
[1758312454565,1.26850478,4450.2,4450.1,1.26573]
[1758312454765,1.48970478,4450.2,4450.1,1.09583]
[1758312455568,1.48970478,4450.2,4450.1,0.63223]
[1758312455770,1.48970478,4450.2,4450.1,0.86383]
[1758312456464,1.48970478,4450.2,4450.1,1.09583]
[1758312457464,1.48970478,4450.2,4450.1,0.86783]
[1758312457665,1.48970478,4450.2,4450.1,1.09583]
[1758312457876,1.26850478,4450.2,4450.1,1.26573]
[1758312458367,1.48970478,4450.2,4450.1,0.86783]
[1758312458574,1.48970478,4450.2,4450.1,0.63223]
[1758312458973,1.48970478,4450.2,4450.1,0.86383]
[1758312459277,1.48970478,4450.2,4450.1,0.63583]
[1758312459572,1.48970478,4450.2,4450.1,0.86383]
[1758312459769,1.48970478,4450.2,4450.1,0.63223]
[1758312461777,1.48970478,4450.2,4450.1,0.86383]
[1758312463277,1.48970478,4450.2,4450.1,0.4596]
[1758312463474,1.48970478,4450.2,4450.1,0.63224]
[1758312466077,1.48970478,4450.2,4450.1,0.40424]
[1758312466577,1.48970478,4450.2,4450.1,0.63224]
[1758312466779,1.48970478,4450.2,4450.1,0.63584]
[1758312466978,1.48970478,4450.2,4450.1,0.86384]
[1758312467878,1.48970478,4450.2,4450.1,0.63224]
[1758312468978,1.48970478,4450.2,4450.1,0.40424]
[1758312469380,1.48970478,4450.2,4450.1,0.63224]
[1758312470086,0.3521,4450.1,4450.0,17.61363636]
[1758312470275,1.48970478,4450.1,4450.0,17.61363636]
[1758312471379,5.48970478,4450.1,4450.0,17.84163636]
[1758312471977,5.48970478,4450.1,4450.0,17.61363636]
[1758312472180,5.48970478,4450.1,4450.0,17.84163636]
[1758312472381,5.50385161,4450.1,4450.0,17.61363636]
[1758312472581,5.50385161,4450.1,4450.0,17.84163636]
[1758312473978,5.50385161,4450.1,4450.0,18.24587636]
[1758312474178,5.50385161,4450.1,4450.0,17.84163636]
[1758312475481,0.5722,4450.0,4449.9,0.0224]
[1758312475685,1.62225161,4450.0,4449.9,0.2504]
[1758312475879,1.62225161,4450.0,4449.9,0.228]
[1758312476280,1.62225161,4450.0,4449.9,0.63225]
[1758312477185,1.62225161,4450.0,4449.8,0.40426]
[1758312477380,1.48955161,4449.9,4449.8,0.40426]
[1758312477580,1.48955161,4449.9,4449.8,0.63226]
[1758312478889,1.48955161,4449.9,4449.8,1.06486]
[1758312479089,1.48955161,4449.9,4449.8,0.85026]
[1758312479388,1.48955161,4449.9,4449.8,0.446]
[1758312479584,1.48955161,4449.9,4449.8,0.228]
[1758312480586,1.48955161,4449.9,4449.6,0.0224]
[1758312480786,0.1327,4450.0,4449.6,0.2504]
[1758312480787,0.4502,4449.7,4449.6,0.2504]
[1758312480987,1.50875161,4449.7,4449.6,0.2504]
[1758312481487,1.50875161,4449.7,4449.6,0.0224]
[1758312481793,4.71655161,4449.7,4449.6,0.0224]
[1758312481990,4.71655161,4449.7,4449.4,0.228]
[1758312482191,0.9233,4449.5,4449.4,0.228]
[1758312482382,1.63795161,4449.5,4449.4,0.228]
[1758312484893,1.63795161,4449.5,4449.2,0.0224]
[1758312485089,0.4502,4449.3,4449.2,0.0224]
[1758312485288,1.50875161,4449.3,4449.2,0.0224]
[1758312485796,1.50875161,4449.3,4449.2,0.2345]
[1758312485994,1.50875161,4449.3,4449.2,0.0224]
[1758312487398,1.50875161,4449.3,4449.2,0.63882]
[1758312487905,0.71465161,4449.3,4449.2,0.4267]
[1758312488100,1.50875161,4449.3,4449.2,0.83102]
[1758312488592,1.50875161,4449.3,4449.2,0.2121]
[1758312488899,0.9233,4449.0,4448.9,3.84014]
[1758312489099,1.63795161,4449.0,4448.9,3.84014]
[1758312489396,1.63795161,4449.0,4448.9,4.05224]
[1758312490393,1.18775161,4449.0,4448.9,4.42514]
[1758312490587,1.05855161,4449.0,4448.9,4.42514]
[1758312490896,0.56958876,4449.0,4448.9,4.42514]
[1758312491093,1.07198187,4449.0,4448.9,4.42514]
[1758312492896,0.72808187,4449.0,4448.9,4.42514]
[1758312495902,1.07198187,4449.0,4448.9,4.42514]
[1758312496101,1.43038187,4449.0,4448.9,4.42514]
[1758312498807,1.65138187,4449.0,4448.9,4.26684]
[1758312499508,1.65138187,4449.0,4448.9,4.03884]
[1758312499801,1.65138187,4449.0,4448.9,4.26684]
[1758312502503,1.65138187,4449.0,4448.9,4.42514]
[1758312503213,0.72808187,4449.0,4448.9,4.42514]
[1758312503415,0.72808187,4449.0,4448.9,8.64991]
[1758312503618,0.22568876,4449.0,4448.9,8.64991]
[1758312503819,0.4502,4449.9,4449.8,0.2121]
[1758312504018,1.5263448,4449.9,4449.8,0.4401]
[1758312504517,1.5263448,4449.9,4449.8,0.63226]
[1758312505208,1.5263448,4449.9,4449.8,0.84436]
[1758312505415,1.5263448,4449.9,4449.8,1.05896]
[1758312506018,1.5263448,4449.9,4449.8,0.63226]
[1758312507017,1.5263448,4449.9,4449.8,0.228]
[1758312508321,1.5263448,4449.9,4449.8,0.63226]
[1758312508721,1.5263448,4449.9,4449.8,0.86046]
[1758312510825,3.2078,4450.3,4450.0,0.63284884]
[1758312511022,0.67329512,4450.2,4450.1,0.5506]
[1758312511625,0.67329512,4450.2,4450.1,0.95483]
[1758312512929,0.95679512,4450.2,4450.1,0.95483]
[1758312514329,0.95679512,4450.2,4450.1,0.5506]
[1758312515023,0.7278,4450.1,4450.0,0.10231884]
[1758312515527,3.4913,4450.8,4450.0,0.44121884]
[1758312515724,0.2246,4450.5,4450.4,1.1674]
[1758312515925,0.2246,4450.5,4450.4,1.3954]
[1758312516322,0.4443,4450.5,4450.4,0.7632]
[1758312516524,0.7278,4450.5,4450.4,0.228]
[1758312516925,0.7278,4450.5,4450.4,0.3224]
[1758312517926,0.7278,4450.5,4450.4,0.5506]
[1758312518726,0.4443,4450.5,4450.4,0.7632]
[1758312519232,3.6521,4450.8,4450.7,0.4408]
[1758312519524,3.9356,4450.8,4450.7,0.7632]
[1758312519932,3.6521,4450.8,4450.7,0.7632]
[1758312520128,0.2246,4451.2,4451.1,0.40413]
[1758312520331,3.2078,4451.3,4451.2,0.7632]
[1758312520633,3.6521,4451.3,4451.2,0.7632]
[1758312521226,3.9356,4451.3,4451.2,0.7632]
[1758312522230,3.6521,4451.8,4451.7,0.5506]
[1758312522534,0.7278,4451.4,4451.3,0.228]
[1758312522930,1.15552751,4451.4,4451.0,0.53044]
[1758312523130,0.7278,4451.1,4451.0,1.08104]
[1758312523331,1.43902751,4451.1,4451.0,1.08104]
[1758312526524,1.43902751,4451.1,4451.0,0.6769]
[1758312527236,1.43885608,4451.1,4451.0,0.6769]
[1758312528333,1.43885608,4451.1,4451.0,0.5506]
[1758312530229,1.43885608,4451.1,4451.0,0.6769]
[1758312530633,0.0771,4451.0,4450.5,0.75849]
[1758312530933,0.7278,4450.7,4450.6,0.5506]
[1758312531135,1.43885608,4450.7,4450.6,0.95478]
[1758312531338,1.43885608,4450.7,4450.6,0.5506]
[1758312531533,0.2835,4450.6,4450.4,3.2078]
[1758312531838,0.71105608,4450.5,4450.4,4.3752]
[1758312532140,0.93565608,4450.5,4450.4,4.3752]
[1758312532338,1.43885608,4450.5,4450.4,4.199]
[1758312533038,0.71105608,4450.5,4450.4,4.199]
[1758312533736,1.43885608,4450.5,4450.4,4.199]
[1758312533939,1.43885608,4450.5,4450.4,3.7582]
[1758312534133,0.93565608,4450.5,4450.4,3.971]
[1758312534637,1.15535608,4450.5,4450.4,3.971]
[1758312535139,1.43885608,4450.5,4450.4,0.3224]
[1758312535637,1.43885608,4450.5,4450.4,0.5506]
[1758312536533,1.15535608,4450.5,4450.4,0.5506]
[1758312537039,1.15535608,4450.5,4450.4,0.7632]
[1758312537235,0.71105608,4450.5,4450.4,0.7632]
[1758312537536,0.93565608,4450.5,4450.4,0.7632]
[1758312537931,1.15535608,4450.5,4450.4,0.7632]
[1758312538137,1.43885608,4450.5,4450.4,0.7632]
[1758312539035,1.43885608,4450.5,4450.4,0.3224]
[1758312540335,1.43885608,4450.5,4450.4,0.5291]
[1758312540736,1.15535608,4450.5,4450.4,0.7477]
[1758312540938,0.71105608,4450.5,4450.4,0.7477]
[1758312544545,0.71105608,4450.5,4450.4,3.9555]
[1758312546945,0.71105608,4450.5,4450.4,4.3597]
[1758312549557,0.773,4451.9,4451.8,0.2088]
[1758312549744,0.5481,4451.9,4451.8,1.14818]
[1758312549944,3.2078,4452.0,4451.9,1.14817]
[1758312550350,3.7559,4452.0,4451.9,1.14817]
[1758312550551,3.5448,4452.0,4451.9,1.14817]
[1758312550746,3.2078,4452.0,4451.9,1.14817]
[1758312551146,3.5448,4452.0,4451.9,1.14817]
[1758312551950,3.7559,4452.0,4451.9,1.14817]
[1758312553751,3.5448,4452.0,4451.9,1.14817]
[1758312553953,3.7559,4452.0,4451.9,1.14817]
[1758312554353,0.68,4452.0,4451.9,1.14817]
[1758312554553,0.9049,4452.0,4451.9,1.14817]
[1758312555250,0.9049,4452.0,4451.9,0.83147]
[1758312555552,0.436,4450.1,4450.0,3.31011884]
[1758312555749,0.773,4450.1,4450.0,3.53811884]
[1758312557250,0.773,4450.1,4450.0,0.33031884]
[1758312560848,0.773,4450.1,4450.0,0.10231884]
[1758312561450,1.52104664,4450.1,4450.0,0.10231884]
[1758312562151,5.52104664,4450.1,4450.0,0.10231884]
[1758312571460,8.72884664,4450.1,4450.0,0.10231884]
[1758312577257,8.95684664,4450.1,4450.0,0.10231884]
[1758312578468,8.72884664,4450.1,4450.0,0.10231884]
[1758312578669,8.95684664,4450.1,4450.0,0.10231884]
[1758312578865,8.95684664,4450.1,4450.0,0.87691884]
[1758312578866,1.29614664,4450.1,4450.0,0.87691884]
[1758312579072,0.24560767,4450.1,4450.0,4.98901884]
[1758312579273,0.24560767,4450.1,4450.0,1.39324884]
[1758312580071,0.24560767,4450.1,4450.0,5.39324884]
[1758312582070,0.5471,4450.7,4450.6,0.7746]
[1758312582273,1.29722083,4450.7,4450.6,1.0026]
[1758312585879,1.50702083,4450.7,4450.6,1.0026]
[1758312586087,1.50776812,4450.7,4450.6,1.0026]
[1758312586376,1.50776812,4450.7,4450.6,0.4463]
[1758312587275,1.50776812,4450.7,4450.6,0.664]
[1758312588278,1.50776812,4450.7,4450.6,1.06818]
[1758312588476,1.50776812,4450.7,4450.6,0.664]
[1758312590084,1.50766959,4450.7,4450.6,0.664]
[1758312594783,1.50766959,4450.7,4450.6,1.06818]
[1758312595085,1.50766959,4450.7,4450.6,0.664]
[1758312595482,1.29786959,4450.7,4450.6,1.40678]
[1758312595676,0.75076959,4450.7,4450.6,5.40678]
[1758312595980,0.24681665,4450.7,4450.6,5.40678]
[1758312598083,0.334,4451.1,4451.0,0.40414]
[1758312598286,1.2771572,4451.1,4451.0,1.40674]
[1758312599387,0.77215611,4451.1,4451.0,1.40674]
[1758312600488,0.98195611,4451.1,4451.0,1.06814]
[1758312601383,0.98195611,4451.1,4451.0,1.38134]
[1758312601784,0.1288,4451.0,4450.8,0.0224]
[1758312601987,1.4802446,4450.9,4450.8,0.0224]
[1758312602192,1.4802446,4450.9,4450.8,0.2504]
[1758312602390,1.4802446,4450.9,4450.8,0.6607]
[1758312602690,0.9403446,4450.9,4450.8,1.37806]
[1758312602882,1.2615446,4450.9,4450.8,1.37806]
[1758312603791,1.2615446,4450.9,4450.8,0.4572]
[1758312603792,1.4802446,4450.9,4450.8,0.4572]
[1758312603993,1.4802446,4450.9,4450.8,0.2504]
[1758312604193,1.4802446,4450.9,4450.8,0.65456]
[1758312604589,1.4802446,4450.9,4450.8,0.86136]
[1758312605190,1.4802446,4450.9,4450.8,0.83896]
[1758312605791,1.4802446,4450.9,4450.8,1.04246]
[1758312608587,1.2615446,4450.9,4450.8,1.35566]
[1758312610394,1.0511446,4450.9,4450.8,1.35566]
[1758312610594,1.2615446,4450.9,4450.8,1.35566]
[1758312613092,1.4802446,4450.9,4450.8,0.6383]
[1758312613290,1.4802446,4450.9,4450.8,0.4348]
[1758312613596,1.4802446,4450.9,4450.8,0.228]
[1758312614090,1.4802446,4450.9,4450.6,0.0224]
[1758312614091,0.3212,4450.8,4450.6,0.42658]
[1758312614289,1.4802446,4450.7,4450.6,0.42658]
[1758312614593,1.4802446,4450.7,4450.6,0.228]
[1758312614794,1.4802446,4450.7,4450.6,0.63218]
[1758312619095,1.4802446,4450.7,4450.6,0.228]
[1758312619497,1.4802446,4450.7,4450.6,0.63218]
[1758312620202,1.4802446,4450.7,4450.6,0.40418]
[1758312620391,1.4802446,4450.7,4450.6,0.63218]
[1758312622094,1.4802446,4450.7,4450.6,0.228]
[1758312623898,1.4802446,4450.7,4450.6,0.63218]
[1758312625500,1.4802446,4450.7,4450.6,0.228]
[1758312626002,1.4802446,4450.7,4450.6,0.63218]
[1758312629206,1.4802446,4450.7,4450.6,0.228]
[1758312630703,1.4802446,4450.7,4450.6,0.63218]
[1758312631102,1.4802446,4450.7,4450.6,1.37188]
[1758312631605,1.4802446,4450.7,4450.6,0.429]
[1758312631805,1.4802446,4450.7,4450.6,0.228]
[1758312636202,1.4802446,4450.7,4450.6,0.83318]
[1758312636401,1.4802446,4450.7,4450.6,0.429]
[1758312637005,1.4802446,4450.7,4450.6,0.228]
[1758312639303,1.4802446,4450.7,4450.6,0.429]
[1758312640314,1.4802446,4450.7,4450.6,0.83318]
[1758312640507,1.4802446,4450.7,4450.6,0.429]
[1758312641510,1.4802446,4450.7,4450.6,0.228]
[1758312644311,1.4802446,4450.7,4450.6,0.63218]
[1758312644614,1.4802446,4450.7,4450.6,0.83318]
[1758312645114,1.4802446,4450.7,4450.6,0.228]
[1758312646808,1.4802446,4450.7,4450.6,0.429]
[1758312647116,1.05147495,4450.7,4450.6,1.37188]
[1758312647608,1.46397495,4450.7,4450.6,1.04378]
[1758312649317,1.46397495,4450.7,4450.6,1.37188]
[1758312653116,1.45977265,4450.7,4450.6,1.37188]
[1758312654615,0.95455381,4450.7,4450.6,1.37188]
[1758312654820,1.45983575,4450.7,4450.6,1.37188]
[1758312656121,1.45983575,4450.7,4450.6,1.04378]
[1758312659622,1.45983575,4450.7,4450.6,1.36738]
[1758312660017,1.04733575,4450.7,4450.6,1.36738]
[1758312660320,0.72613575,4450.7,4450.6,1.36738]
[1758312660521,1.04493575,4450.7,4450.6,1.36738]
[1758312660722,0.72613575,4450.7,4450.6,1.36738]
[1758312661125,1.04493575,4450.7,4450.6,1.36738]
[1758312661326,1.24923575,4450.7,4450.6,1.36738]
[1758312663927,0.72613575,4450.7,4450.6,5.59207]
[1758312664622,0.22085381,4450.7,4450.6,5.59207]
[1758312664830,0.22085381,4450.7,4450.6,5.36738]
[1758312668024,0.5231,4451.2,4451.1,0.60583]
[1758312668240,1.2267573,4451.2,4451.1,4.56633]
[1758312668720,1.0224573,4451.2,4451.1,4.56633]
[1758312668924,0.7036573,4451.2,4451.1,4.56633]
[1758312669321,0.19936163,4451.2,4451.1,4.56633]
[1758312670233,0.51816163,4451.2,4451.1,4.56633]
[1758312672822,0.72246163,4451.2,4451.1,4.56633]
[1758312675637,0.51816163,4451.2,4451.1,4.56633]
[1758312676337,0.51790156,4451.2,4451.1,4.56633]
[1758312676736,0.92460156,4451.2,4451.1,4.24273]
[1758312676933,0.92460156,4451.2,4451.1,4.01473]
[1758312677134,1.42818788,4451.2,4450.9,0.0224]
[1758312677433,0.8509,4451.0,4450.9,0.0224]
[1758312677633,1.55362121,4451.0,4450.9,0.0224]
[1758312677840,1.55362121,4451.0,4450.9,0.228]
[1758312678038,0.8509,4450.5,4450.4,3.612]
[1758312678236,1.05000156,4450.5,4450.4,3.84]
[1758312678440,1.55363994,4450.5,4450.4,3.84]
[1758312681839,1.55363994,4450.5,4450.4,4.0417]
[1758312682637,1.55363994,4450.5,4450.4,3.4358]
[1758312682838,5.55363994,4450.5,4450.2,0.0224]
[1758312683037,0.7255,4450.3,4450.2,0.0224]
[1758312683339,1.42823994,4450.3,4450.2,0.0224]
[1758312684039,1.42823994,4450.3,4450.2,0.2504]
[1758312684649,1.42823994,4450.3,4450.2,0.228]
[1758312687550,5.42823994,4450.3,4450.2,0.228]
[1758312696265,5.4388885,4450.3,4450.2,0.228]
[1758312699362,1.4388885,4450.3,4450.2,0.228]
[1758312700668,1.4388885,4450.3,4450.0,0.12471884]
[1758312700966,0.2059,4449.4,4449.3,40.0231]
[1758312701268,0.72885012,4449.4,4449.3,40.5641]
[1758312702469,1.23178781,4449.4,4449.3,40.5641]
[1758312705764,1.23178781,4449.4,4449.3,40.1598]
[1758312706072,1.23178781,4449.4,4449.3,40.5641]
[1758312714377,0.71268781,4449.4,4449.3,40.5641]
[1758312715471,0.3132,4450.3,4450.2,0.81162]
[1758312715675,3.2078,4450.6,4450.5,1.24359]
[1758312715875,3.2078,4450.6,4450.5,1.47059]
[1758312716271,0.3132,4451.2,4450.9,0.40415]
[1758312716475,0.7326,4451.2,4451.1,0.7204]
[1758312717171,0.7326,4451.2,4451.0,0.227]
[1758312719174,0.7326,4451.2,4450.8,0.3052]
[1758312719373,0.5415,4451.0,4450.9,0.227]
[1758312719569,0.8572,4451.0,4450.9,0.227]
[1758312722783,0.5415,4451.0,4450.9,0.2081]
[1758312723382,0.8572,4451.0,4450.9,0.2081]
[1758312723885,0.8572,4451.0,4450.9,0.7237]
[1758312724080,0.8572,4451.0,4450.9,0.4215]
[1758312724385,0.8572,4451.0,4450.9,0.2081]
[1758312725074,0.7366,4451.0,4450.9,0.7237]
[1758312725280,0.3157,4451.0,4450.9,1.12785]
[1758312725585,0.5261,4451.0,4450.9,1.12785]
[1758312726189,0.5261,4451.0,4450.9,0.7237]
[1758312726386,0.8572,4451.0,4450.9,0.7237]
[1758312726685,0.8572,4451.0,4450.7,0.227]
[1758312726981,0.8572,4451.0,4450.9,0.2081]
[1758312727383,0.8572,4451.0,4450.9,0.7237]
[1758312727584,1.55377587,4451.0,4450.9,0.7237]
[1758312727779,1.55377587,4451.0,4450.9,0.4215]
[1758312728587,1.55377587,4451.0,4450.9,0.7237]
[1758312729884,1.55377587,4451.0,4450.9,0.4215]
[1758312732791,1.55377587,4451.0,4450.7,0.227]
[1758312733090,0.7366,4450.8,4450.3,3.2302]
[1758312733384,0.8572,4450.5,4450.4,0.227]
[1758312733588,1.55351873,4450.5,4450.4,0.227]
[1758312734087,1.55351873,4450.5,4450.3,0.0224]
[1758312734282,1.11721873,4450.4,4450.3,0.0224]
[1758312734488,1.43291873,4450.4,4450.3,0.0224]
[1758312734890,1.23105478,4450.4,4450.3,0.0224]
[1758312735186,1.43283947,4450.4,4450.3,0.0224]
[1758312735386,1.43283947,4450.4,4450.3,0.93691]
[1758312735587,1.43283947,4450.4,4450.3,0.2305]
[1758312735789,1.43283947,4450.4,4450.0,0.93344]
[1758312736084,0.7366,4450.1,4450.0,0.4351]
[1758312736278,1.43283947,4450.1,4450.0,0.83934]
[1758312736787,1.43283947,4450.1,4450.0,0.4351]
[1758312736989,1.43283947,4450.1,4450.0,0.83934]
[1758312739690,1.43283947,4450.1,4450.0,1.35494]
[1758312739893,0.69623947,4450.1,4450.0,5.68115999]
[1758312740087,0.20178469,4450.1,4450.0,5.68115999]
[1758312740389,3.7339,4450.8,4450.7,0.7237]
[1758312740585,4.43073291,4450.8,4450.7,0.9507]
[1758312740785,4.43073291,4450.8,4450.7,1.35487]
[1758312741187,4.43073291,4450.8,4450.7,0.9507]
[1758312741388,4.43073291,4450.8,4450.7,1.35487]
[1758312741991,4.43073291,4450.8,4450.7,0.9507]
[1758312742488,4.43073291,4450.8,4450.7,1.35488]
[1758312743690,4.64123291,4450.8,4450.7,0.9507]
[1758312744793,4.64123291,4450.8,4450.7,1.35488]
[1758312745394,4.64123291,4450.8,4450.7,0.9507]
[1758312745590,0.3157,4450.7,4450.4,0.4042]
[1758312745894,0.8572,4450.5,4450.4,0.6123]
[1758312746192,1.55403291,4450.5,4450.4,0.8393]
[1758312752296,1.55403291,4450.5,4450.4,1.346]
[1758312752691,1.55403291,4450.5,4450.4,0.227]
[1758312752997,1.55403291,4450.5,4450.4,0.6312]
[1758312753796,1.55403291,4450.5,4450.4,0.8303]
[1758312755895,1.55403291,4450.5,4450.4,1.1409]
[1758312756896,1.55403291,4450.5,4450.4,0.8303]
[1758312758597,1.22133291,4450.5,4450.4,1.337]
[1758312758898,1.55623291,4450.5,4450.4,1.337]
[1758312759195,1.55658152,4450.5,4450.4,1.337]
[1758312759399,1.55658152,4450.5,4450.4,1.0264]
[1758312761297,1.5566269,4450.5,4450.4,1.0264]
[1758312763394,1.5566269,4450.5,4449.9,3.2302]
[1758312763395,0.8648,4450.0,4449.9,3.83355]
[1758312763600,1.5620269,4450.0,4449.9,4.06055]
[1758312763794,1.5620269,4450.0,4449.9,4.03815]
[1758312764492,1.5620269,4450.0,4449.9,4.34875]
[1758312765093,1.5620269,4450.0,4449.9,4.54485]
[1758312768002,1.5620269,4450.0,4449.9,4.23425]
[1758312768203,1.5620269,4450.0,4449.9,0.40425]
[1758312768403,1.5620269,4450.0,4449.9,0.63125]
[1758312769202,1.5620269,4450.0,4449.9,0.227]
[1758312770098,1.5620269,4450.0,4449.9,0.63125]
[1758312770303,1.5620269,4450.0,4449.9,0.40425]
[1758312771402,1.5620269,4450.0,4449.9,0.60335]
[1758312772007,1.5620269,4450.0,4449.9,1.11005]
[1758312773011,1.4325269,4450.0,4449.9,1.11005]
[1758312773202,0.6972269,4450.0,4449.9,1.11005]
[1758312773402,0.6972269,4450.0,4449.9,4.31785]
[1758312774507,0.6972269,4450.0,4449.9,4.54485]
[1758312779011,1.43933393,4450.0,4449.9,4.54485]
[1758312779211,1.56323393,4450.0,4449.9,4.54485]
[1758312780007,1.43933393,4450.0,4449.9,4.54485]
[1758312780308,1.23133393,4450.0,4449.9,4.54485]
[1758312781911,0.71443393,4450.0,4449.9,4.54485]
[1758312782809,1.01883393,4450.0,4449.9,4.54485]
[1758312784409,0.71443393,4450.0,4449.9,4.54485]
[1758312785615,1.01883393,4450.0,4449.9,4.54485]
[1758312785811,1.23133393,4450.0,4449.9,4.54485]
[1758312787014,1.56323393,4450.0,4449.9,4.23425]
[1758312787208,1.43933393,4450.0,4449.9,4.54105]
[1758312787713,1.56323393,4450.0,4449.9,4.54105]
[1758312789011,1.23133393,4450.0,4449.9,4.54105]
[1758312789313,1.01883393,4450.0,4449.9,4.31405]
[1758312789508,0.71443393,4450.0,4449.9,4.54105]
[1758312789904,0.715174,4450.0,4449.9,4.54105]
[1758312790417,1.232074,4450.0,4449.9,4.54105]
[1758312791716,0.715174,4450.0,4449.9,4.54105]
[1758312792317,1.232074,4450.0,4449.9,4.54105]
[1758312792616,1.440074,4450.0,4449.9,4.54105]
[1758312793904,1.44008096,4450.0,4449.9,4.54105]
[1758312795405,1.23208096,4450.0,4449.9,4.54105]
[1758312795809,1.01958096,4450.0,4449.9,4.54105]
[1758312797912,0.71518096,4450.0,4449.9,4.54105]
[1758312800922,0.71503472,4450.0,4449.9,4.54105]
[1758312802820,3.2078,4450.9,4450.8,0.82407]
[1758312803041,0.22027405,4450.9,4450.8,5.28317]
[1758312803534,0.3044,4451.8,4451.7,0.40408]
[1758312803728,3.2078,4452.4,4452.2,0.61504]
[1758312803729,0.3044,4452.3,4452.2,0.61504]
[1758312803933,0.3044,4452.3,4452.2,1.28304]
[1758312804836,0.5169,4452.3,4452.2,1.28304]
[1758312805230,0.3044,4452.3,4452.2,1.28304]
[1758312805626,0.7249,4452.3,4452.2,1.05094]
[1758312805939,0.4205,4452.3,4452.2,0.227]
[1758312806640,0.7249,4452.3,4452.2,0.227]
[1758312808236,0.7249,4452.3,4451.5,0.2321]
[1758312808443,0.86,4451.5,4451.4,3.82291]
[1758312808645,0.86,4451.5,4451.4,4.04991]
[1758312808941,0.86,4451.5,4451.4,4.24731]
[1758312809439,0.86,4451.5,4451.4,4.47931]
[1758312812236,0.1239,4452.0,4451.9,0.40407]
[1758312812437,0.3231,4452.0,4451.9,1.25497]
[1758312812836,0.8524,4452.0,4451.9,0.82557]